[Event "Titled Tuesday Blitz December 14 2021"]
[White "Dobrov, Vladimir"]
[Black "Klyashtorny, Vladislav"]
[WhiteFideId "4136594"]
[BlackFideId "4170938"]
[WhiteElo "2614"]
[BlackElo "2444"]
[Result "1-0"]
[Round "01"]
[TimeControl "180+1"]
[Date "2021.12.15"]
[WhiteClock "0:00:20"]
[BlackClock "0:00:03"]

1. d4 {[%clk 0:03:00]}  d5 {[%clk 0:02:53]} 2. c4 {[%clk 0:03:00]}  e6 {[%clk 0:02:52]} 3. Nc3 {[%clk 0:03:00]}  Nf6 {[%clk 0:02:51]} 4. Nf3 {[%clk 0:02:57]}  Nbd7 {[%clk 0:02:51]} 5. Bf4 {[%clk 0:02:54]}  a6 {[%clk 0:02:41]} 6. c5 {[%clk 0:02:46]}  Nh5 {[%clk 0:02:18]} 7. Bg5 {[%clk 0:02:38]}  Be7 {[%clk 0:02:17]} 8. h4 {[%clk 0:02:38]}  h6 {[%clk 0:02:16]} 9. Bc1 {[%clk 0:02:37]}  f5 {[%clk 0:02:14]} 10. b4 {[%clk 0:02:24]}  O-O {[%clk 0:01:54]} 11. e3 {[%clk 0:02:15]}  Nhf6 {[%clk 0:01:54]} 12. a3 {[%clk 0:02:11]}  Ne4 {[%clk 0:01:54]} 13. Bb2 {[%clk 0:02:08]}  Nxc3 {[%clk 0:01:37]} 14. Bxc3 {[%clk 0:02:08]}  f4 {[%clk 0:01:38]} 15. exf4 {[%clk 0:01:58]}  Rxf4 {[%clk 0:01:37]} 16. Bd3 {[%clk 0:01:54]}  Rf8 {[%clk 0:01:10]} 17. Qe2 {[%clk 0:01:53]}  Nf6 {[%clk 0:01:09]} 18. Ne5 {[%clk 0:01:54]}  Bd7 {[%clk 0:01:02]} 19. Rh3 {[%clk 0:01:38]}  Bb5 {[%clk 0:01:01]} 20. Bxb5 {[%clk 0:01:31]}  axb5 {[%clk 0:01:01]} 21. Ng6 {[%clk 0:01:14]}  Qd7 {[%clk 0:00:49]} 22. Nxf8 {[%clk 0:01:13]}  Bxf8 {[%clk 0:00:46]} 23. Re3 {[%clk 0:01:10]}  Kf7 {[%clk 0:00:39]} 24. Bb2 {[%clk 0:01:08]}  h5 {[%clk 0:00:26]} 25. O-O-O {[%clk 0:01:08]}  g6 {[%clk 0:00:27]} 26. Re1 {[%clk 0:01:08]}  Bh6 {[%clk 0:00:26]} 27. Kc2 {[%clk 0:01:08]}  Bxe3 {[%clk 0:00:26]} 28. Qxe3 {[%clk 0:01:09]}  Rf8 {[%clk 0:00:18]} 29. f3 {[%clk 0:01:08]}  Re8 {[%clk 0:00:16]} 30. Bc1 {[%clk 0:01:07]}  Kg8 {[%clk 0:00:14]} 31. Qd3 {[%clk 0:00:57]}  Kf7 {[%clk 0:00:11]} 32. Bg5 {[%clk 0:00:56]}  c6 {[%clk 0:00:07]} 33. Bf4 {[%clk 0:00:55]}  Qd8 {[%clk 0:00:06]} 34. Bg5 {[%clk 0:00:53]}  Qd7 {[%clk 0:00:06]} 35. g4 {[%clk 0:00:51]}  hxg4 {[%clk 0:00:06]} 36. fxg4 {[%clk 0:00:51]}  Kg7 {[%clk 0:00:06]} 37. h5 {[%clk 0:00:49]}  Ne4 {[%clk 0:00:05]} 38. Bf4 {[%clk 0:00:38]}  gxh5 {[%clk 0:00:04]} 39. gxh5 {[%clk 0:00:37]}  Qf7 {[%clk 0:00:04]} 40. Be5+ {[%clk 0:00:35]}  Kh7 {[%clk 0:00:05]} 41. Rf1 {[%clk 0:00:30]}  Qxh5 {[%clk 0:00:03]} 42. Rf3 {[%clk 0:00:20]} 1-0


[Site "https://www.chess.com"]

[Event "Titled Tuesday Blitz December 14 2021"]
[White "Dogan, Mire Deniz"]
[Black "Martinovici, Ilia"]
[WhiteFideId "6317456"]
[BlackFideId "13907034"]
[WhiteElo "1850"]
[BlackElo "2303"]
[Result "1/2-1/2"]
[Round "01"]
[TimeControl "180+1"]
[Date "2021.12.15"]
[WhiteClock "0:00:11"]
[BlackClock "0:00:12"]

1. d4 {[%clk 0:02:59]}  g6 {[%clk 0:02:55]} 2. c4 {[%clk 0:02:59]}  Bg7 {[%clk 0:02:56]} 3. Nc3 {[%clk 0:02:58]}  d6 {[%clk 0:02:56]} 4. e4 {[%clk 0:02:57]}  Nd7 {[%clk 0:02:55]} 5. f3 {[%clk 0:02:57]}  e5 {[%clk 0:02:55]} 6. d5 {[%clk 0:02:56]}  Ngf6 {[%clk 0:02:55]} 7. Be3 {[%clk 0:02:54]}  O-O {[%clk 0:02:54]} 8. g4 {[%clk 0:02:53]}  a5 {[%clk 0:02:51]} 9. Qd2 {[%clk 0:02:53]}  Nc5 {[%clk 0:02:46]} 10. Nge2 {[%clk 0:02:44]}  Bxg4 {[%clk 0:02:39]} 11. fxg4 {[%clk 0:02:31]}  Nfxe4 {[%clk 0:02:36]} 12. Nxe4 {[%clk 0:02:27]}  Nxe4 {[%clk 0:02:35]} 13. Qc2 {[%clk 0:02:19]}  Qh4+ {[%clk 0:02:35]} 14. Ng3 {[%clk 0:01:51]}  Nxg3 {[%clk 0:02:02]} 15. Bf2 {[%clk 0:01:51]}  Qxg4 {[%clk 0:02:02]} 16. hxg3 {[%clk 0:01:45]}  f5 {[%clk 0:02:01]} 17. Be2 {[%clk 0:01:45]}  Qg5 {[%clk 0:01:59]} 18. Qd2 {[%clk 0:01:29]}  Qxd2+ {[%clk 0:01:46]} 19. Kxd2 {[%clk 0:01:30]}  e4 {[%clk 0:01:47]} 20. Be3 {[%clk 0:01:25]}  b6 {[%clk 0:01:43]} 21. Kc2 {[%clk 0:01:22]}  Be5 {[%clk 0:01:38]} 22. Bf4 {[%clk 0:01:22]}  Rae8 {[%clk 0:01:36]} 23. Raf1 {[%clk 0:01:16]}  Rf7 {[%clk 0:01:30]} 24. Rh3 {[%clk 0:01:09]}  Kg7 {[%clk 0:01:30]} 25. Bh6+ {[%clk 0:01:06]}  Kf6 {[%clk 0:01:30]} 26. g4 {[%clk 0:01:04]}  Rg8 {[%clk 0:01:18]} 27. gxf5 {[%clk 0:00:55]}  gxf5 {[%clk 0:01:19]} 28. Rh5 {[%clk 0:00:55]}  Ke7 {[%clk 0:01:05]} 29. Rhxf5 {[%clk 0:00:40]}  Rxf5 {[%clk 0:01:05]} 30. Rxf5 {[%clk 0:00:41]}  Rg2 {[%clk 0:01:05]} 31. Kd1 {[%clk 0:00:41]}  Bxb2 {[%clk 0:01:04]} 32. Bg5+ {[%clk 0:00:39]}  Kd7 {[%clk 0:01:01]} 33. Be3 {[%clk 0:00:30]}  Kc8 {[%clk 0:00:57]} 34. c5 {[%clk 0:00:26]}  bxc5 {[%clk 0:00:51]} 35. Ba6+ {[%clk 0:00:26]}  Kb8 {[%clk 0:00:52]} 36. Rf8+ {[%clk 0:00:19]}  Ka7 {[%clk 0:00:52]} 37. Bb5 {[%clk 0:00:20]}  Bd4 {[%clk 0:00:46]} 38. Bd2 {[%clk 0:00:17]}  c4 {[%clk 0:00:28]} 39. Bxa5 {[%clk 0:00:14]}  c3 {[%clk 0:00:27]} 40. Be2 {[%clk 0:00:03]}  c2+ {[%clk 0:00:22]} 41. Kxc2 {[%clk 0:00:04]}  Rxe2+ {[%clk 0:00:23]} 42. Kb3 {[%clk 0:00:04]}  Rb2+ {[%clk 0:00:20]} 43. Ka3 {[%clk 0:00:04]}  Rc2 {[%clk 0:00:16]} 44. Rf7 {[%clk 0:00:04]}  Kb7 {[%clk 0:00:16]} 45. Rxh7 {[%clk 0:00:03]}  e3 {[%clk 0:00:16]} 46. Re7 {[%clk 0:00:04]}  e2 {[%clk 0:00:15]} 47. Kb3 {[%clk 0:00:04]}  Rb2+ {[%clk 0:00:16]} 48. Kc4 {[%clk 0:00:05]}  Rxa2 {[%clk 0:00:15]} 49. Kxd4 {[%clk 0:00:04]}  Rxa5 {[%clk 0:00:16]} 50. Rxe2 {[%clk 0:00:05]}  Ra4+ {[%clk 0:00:16]} 51. Kd3 {[%clk 0:00:05]}  Kb6 {[%clk 0:00:16]} 52. Rc2 {[%clk 0:00:06]}  Ra5 {[%clk 0:00:16]} 53. Kd4 {[%clk 0:00:06]}  Rb5 {[%clk 0:00:16]} 54. Rc4 {[%clk 0:00:06]}  Kb7 {[%clk 0:00:15]} 55. Rc3 {[%clk 0:00:06]}  Kc8 {[%clk 0:00:15]} 56. Re3 {[%clk 0:00:05]}  Kd7 {[%clk 0:00:15]} 57. Kc4 {[%clk 0:00:06]}  Rc5+ {[%clk 0:00:15]} 58. Kd4 {[%clk 0:00:06]}  Kc8 {[%clk 0:00:16]} 59. Rb3 {[%clk 0:00:05]}  Rc1 {[%clk 0:00:16]} 60. Rb4 {[%clk 0:00:05]}  Rd1+ {[%clk 0:00:17]} 61. Ke4 {[%clk 0:00:05]}  Kd7 {[%clk 0:00:17]} 62. Rc4 {[%clk 0:00:05]}  Rb1 {[%clk 0:00:16]} 63. Kd4 {[%clk 0:00:05]}  Rb5 {[%clk 0:00:15]} 64. Ke4 {[%clk 0:00:05]}  Rc5 {[%clk 0:00:15]} 65. Rxc5 {[%clk 0:00:04]}  dxc5 {[%clk 0:00:16]} 66. Kd3 {[%clk 0:00:05]}  Ke7 {[%clk 0:00:14]} 67. Kc3 {[%clk 0:00:04]}  Kd7 {[%clk 0:00:12]} 68. Kd3 {[%clk 0:00:04]}  c6 {[%clk 0:00:05]} 69. dxc6+ {[%clk 0:00:04]}  Kxc6 {[%clk 0:00:06]} 70. Kc4 {[%clk 0:00:05]}  Kb6 {[%clk 0:00:07]} 71. Kc3 {[%clk 0:00:05]}  Kb5 {[%clk 0:00:08]} 72. Kb3 {[%clk 0:00:06]}  c4+ {[%clk 0:00:09]} 73. Kc3 {[%clk 0:00:07]}  Kc5 {[%clk 0:00:09]} 74. Kc2 {[%clk 0:00:07]}  Kb4 {[%clk 0:00:10]} 75. Kb2 {[%clk 0:00:08]}  c3+ {[%clk 0:00:11]} 76. Kc2 {[%clk 0:00:09]}  Kc4 {[%clk 0:00:11]} 77. Kc1 {[%clk 0:00:09]}  Kd3 {[%clk 0:00:12]} 78. Kd1 {[%clk 0:00:09]}  Kd4 {[%clk 0:00:12]} 79. Kc2 {[%clk 0:00:10]}  Kc4 {[%clk 0:00:12]} 80. Kc1 {[%clk 0:00:10]}  Kb4 {[%clk 0:00:12]} 81. Kc2 {[%clk 0:00:11]}  Kc4 {[%clk 0:00:12]} 1/2-1/2


[Site "https://www.chess.com"]

[Event "Titled Tuesday Blitz December 14 2021"]
[White "Eggleston, Thomas A"]
[Black "Tasev, Dejan"]
[WhiteFideId "412139"]
[BlackFideId "936618"]
[WhiteElo "2174"]
[BlackElo "2253"]
[Result "1/2-1/2"]
[Round "01"]
[TimeControl "180+1"]
[Date "2021.12.15"]
[WhiteClock "0:00:03"]
[BlackClock "0:00:13"]

1. e4 {[%clk 0:03:00]}  c6 {[%clk 0:02:59]} 2. Nc3 {[%clk 0:02:59]}  d5 {[%clk 0:02:59]} 3. Nf3 {[%clk 0:02:59]}  dxe4 {[%clk 0:02:59]} 4. Nxe4 {[%clk 0:02:59]}  Nf6 {[%clk 0:03:00]} 5. Qe2 {[%clk 0:02:49]}  Nxe4 {[%clk 0:02:58]} 6. Qxe4 {[%clk 0:02:49]}  Qd5 {[%clk 0:02:58]} 7. Qh4 {[%clk 0:02:47]}  Qe6+ {[%clk 0:02:55]} 8. Be2 {[%clk 0:02:46]}  Qg4 {[%clk 0:02:55]} 9. Qg3 {[%clk 0:02:40]}  Qxg3 {[%clk 0:02:53]} 10. hxg3 {[%clk 0:02:40]}  Nd7 {[%clk 0:02:48]} 11. d4 {[%clk 0:02:40]}  Nf6 {[%clk 0:02:47]} 12. Bf4 {[%clk 0:02:40]}  Bf5 {[%clk 0:02:46]} 13. O-O-O {[%clk 0:02:39]}  h6 {[%clk 0:02:44]} 14. Ne5 {[%clk 0:02:39]}  Bh7 {[%clk 0:02:11]} 15. g4 {[%clk 0:02:35]}  Ne4 {[%clk 0:01:54]} 16. Be3 {[%clk 0:02:21]}  f6 {[%clk 0:01:50]} 17. Nd3 {[%clk 0:02:19]}  O-O-O {[%clk 0:01:43]} 18. Nf4 {[%clk 0:02:09]}  Ng5 {[%clk 0:01:22]} 19. d5 {[%clk 0:01:56]}  Be4 {[%clk 0:01:08]} 20. dxc6 {[%clk 0:01:53]}  Bxc6 {[%clk 0:01:06]} 21. Rxd8+ {[%clk 0:01:50]}  Kxd8 {[%clk 0:01:06]} 22. Rd1+ {[%clk 0:01:51]}  Kc7 {[%clk 0:01:06]} 23. Ng6 {[%clk 0:01:49]}  Rg8 {[%clk 0:01:01]} 24. Bxg5 {[%clk 0:01:46]}  hxg5 {[%clk 0:00:55]} 25. Bc4 {[%clk 0:01:45]}  Be4 {[%clk 0:00:55]} 26. Bxg8 {[%clk 0:01:43]}  Bxg6 {[%clk 0:00:54]} 27. Be6 {[%clk 0:01:42]}  Be8 {[%clk 0:00:54]} 28. c3 {[%clk 0:01:40]}  g6 {[%clk 0:00:54]} 29. Kc2 {[%clk 0:01:38]}  Bg7 {[%clk 0:00:54]} 30. Rh1 {[%clk 0:01:35]}  f5 {[%clk 0:00:53]} 31. Rh7 {[%clk 0:01:34]}  Bf6 {[%clk 0:00:51]} 32. gxf5 {[%clk 0:01:33]}  gxf5 {[%clk 0:00:51]} 33. Bxf5 {[%clk 0:01:33]}  Bc6 {[%clk 0:00:52]} 34. f3 {[%clk 0:01:32]}  a5 {[%clk 0:00:52]} 35. Be4 {[%clk 0:01:32]}  Bd7 {[%clk 0:00:51]} 36. b3 {[%clk 0:01:30]}  Bc8 {[%clk 0:00:47]} 37. g4 {[%clk 0:01:27]}  Bd7 {[%clk 0:00:46]} 38. Kd3 {[%clk 0:01:25]}  Bb5+ {[%clk 0:00:45]} 39. c4 {[%clk 0:01:25]}  Bd7 {[%clk 0:00:44]} 40. Bf5 {[%clk 0:01:22]}  Bc6 {[%clk 0:00:44]} 41. Be4 {[%clk 0:01:22]}  Bd7 {[%clk 0:00:44]} 42. Rh6 {[%clk 0:01:14]}  b6 {[%clk 0:00:42]} 43. Rg6 {[%clk 0:01:13]}  Be8 {[%clk 0:00:39]} 44. Rg8 {[%clk 0:01:13]}  Bd7 {[%clk 0:00:37]} 45. Bf5 {[%clk 0:01:11]}  Bc6 {[%clk 0:00:36]} 46. Rc8+ {[%clk 0:01:07]}  Kb7 {[%clk 0:00:31]} 47. Rf8 {[%clk 0:01:02]}  Kc7 {[%clk 0:00:31]} 48. Be4 {[%clk 0:01:02]}  Bd7 {[%clk 0:00:28]} 49. Ke3 {[%clk 0:01:02]}  Kd6 {[%clk 0:00:27]} 50. f4 {[%clk 0:01:02]}  Bxg4 {[%clk 0:00:25]} 51. fxg5 {[%clk 0:00:58]}  Bxg5+ {[%clk 0:00:25]} 52. Kd3 {[%clk 0:00:58]}  Bf6 {[%clk 0:00:25]} 53. Rb8 {[%clk 0:00:55]}  Kc5 {[%clk 0:00:23]} 54. Ra8 {[%clk 0:00:48]}  Bh3 {[%clk 0:00:21]} 55. Bf3 {[%clk 0:00:47]}  Bf5+ {[%clk 0:00:21]} 56. Kd2 {[%clk 0:00:46]}  Bg5+ {[%clk 0:00:20]} 57. Kc3 {[%clk 0:00:43]}  Bf6+ {[%clk 0:00:21]} 58. Kd2 {[%clk 0:00:41]}  Bb1 {[%clk 0:00:20]} 59. Rc8+ {[%clk 0:00:41]}  Kb4 {[%clk 0:00:21]} 60. Rb8 {[%clk 0:00:39]}  Bd4 {[%clk 0:00:21]} 61. Bd1 {[%clk 0:00:36]}  Bxa2 {[%clk 0:00:20]} 62. Kd3 {[%clk 0:00:36]}  Bc5 {[%clk 0:00:20]} 63. Bc2 {[%clk 0:00:35]}  a4 {[%clk 0:00:18]} 64. bxa4 {[%clk 0:00:33]}  Bxc4+ {[%clk 0:00:18]} 65. Ke4 {[%clk 0:00:33]}  Kc3 {[%clk 0:00:18]} 66. Bd1 {[%clk 0:00:32]}  Bd3+ {[%clk 0:00:18]} 67. Kd5 {[%clk 0:00:31]}  Kb4 {[%clk 0:00:17]} 68. Kc6 {[%clk 0:00:26]}  Be4+ {[%clk 0:00:17]} 69. Kd7 {[%clk 0:00:25]}  Bf5+ {[%clk 0:00:16]} 70. Kd8 {[%clk 0:00:24]}  e5 {[%clk 0:00:16]} 71. Ke8 {[%clk 0:00:11]}  Bd3 {[%clk 0:00:16]} 72. Rd8 {[%clk 0:00:10]}  e4 {[%clk 0:00:16]} 73. Kf7 {[%clk 0:00:08]}  Bc4+ {[%clk 0:00:15]} 74. Kf6 {[%clk 0:00:08]}  e3 {[%clk 0:00:16]} 75. Re8 {[%clk 0:00:07]}  Kc3 {[%clk 0:00:16]} 76. Kf5 {[%clk 0:00:06]}  Kd2 {[%clk 0:00:16]} 77. Bh5 {[%clk 0:00:05]}  e2 {[%clk 0:00:16]} 78. Bxe2 {[%clk 0:00:05]}  Bxe2 {[%clk 0:00:16]} 79. Ke5 {[%clk 0:00:04]}  Kc3 {[%clk 0:00:16]} 80. Kd5 {[%clk 0:00:04]}  Kb4 {[%clk 0:00:17]} 81. Rxe2 {[%clk 0:00:04]}  Kxa4 {[%clk 0:00:17]} 82. Kc4 {[%clk 0:00:03]}  Ka3 {[%clk 0:00:16]} 83. Re1 {[%clk 0:00:02]}  Bf2 {[%clk 0:00:13]} 84. Ra1+ {[%clk 0:00:02]}  Kb2 {[%clk 0:00:13]} 85. Rf1 {[%clk 0:00:03]}  Bc5 {[%clk 0:00:13]} 86. Kb5 {[%clk 0:00:03]}  Kc3 {[%clk 0:00:14]} 87. Rf3+ {[%clk 0:00:04]}  Kd4 {[%clk 0:00:13]} 88. Rf7 {[%clk 0:00:05]}  Kd5 {[%clk 0:00:13]} 89. Rf1 {[%clk 0:00:05]}  Kd4 {[%clk 0:00:14]} 90. Rd1+ {[%clk 0:00:06]}  Kc3 {[%clk 0:00:14]} 91. Rc1+ {[%clk 0:00:06]}  Kd4 {[%clk 0:00:14]} 92. Rd1+ {[%clk 0:00:06]}  Ke5 {[%clk 0:00:14]} 93. Rc1 {[%clk 0:00:06]}  Kd5 {[%clk 0:00:14]} 94. Rd1+ {[%clk 0:00:07]}  Bd4 {[%clk 0:00:15]} 95. Kb4 {[%clk 0:00:05]}  Ke4 {[%clk 0:00:14]} 96. Kc4 {[%clk 0:00:05]}  Bc5 {[%clk 0:00:15]} 97. Kb5 {[%clk 0:00:04]}  Bd4 {[%clk 0:00:15]} 98. Kc6 {[%clk 0:00:04]}  Bc5 {[%clk 0:00:14]} 99. Kb5 {[%clk 0:00:04]}  Bd4 {[%clk 0:00:13]} 100. Re1+ {[%clk 0:00:03]}  Kd5 {[%clk 0:00:13]} 101. Rd1 {[%clk 0:00:03]}  Ke4 {[%clk 0:00:13]} 1/2-1/2


[Site "https://www.chess.com"]

[Event "Titled Tuesday Blitz December 14 2021"]
[White "Grandelius, Nils"]
[Black "Glavina, Pablo"]
[WhiteFideId "1710400"]
[BlackFideId "100234"]
[WhiteElo "2617"]
[BlackElo "2369"]
[Result "0-1"]
[Round "01"]
[TimeControl "180+1"]
[Date "2021.12.15"]
[WhiteClock "0:00:11"]
[BlackClock "0:00:17"]

1. e4 {[%clk 0:03:00]}  c6 {[%clk 0:02:58]} 2. d4 {[%clk 0:02:59]}  d5 {[%clk 0:02:58]} 3. exd5 {[%clk 0:03:00]}  cxd5 {[%clk 0:02:56]} 4. Nf3 {[%clk 0:03:01]}  Nc6 {[%clk 0:02:55]} 5. Bb5 {[%clk 0:03:00]}  Nf6 {[%clk 0:02:52]} 6. Ne5 {[%clk 0:02:59]}  Qc7 {[%clk 0:02:46]} 7. Bf4 {[%clk 0:02:54]}  e6 {[%clk 0:02:44]} 8. c4 {[%clk 0:02:45]}  Bb4+ {[%clk 0:02:40]} 9. Nc3 {[%clk 0:02:44]}  O-O {[%clk 0:02:38]} 10. Nxc6 {[%clk 0:02:38]}  Qxf4 {[%clk 0:02:35]} 11. Nxb4 {[%clk 0:02:38]}  a6 {[%clk 0:02:31]} 12. Ba4 {[%clk 0:02:35]}  dxc4 {[%clk 0:02:31]} 13. Qd2 {[%clk 0:02:27]}  Qd6 {[%clk 0:02:30]} 14. a3 {[%clk 0:02:23]}  b5 {[%clk 0:02:28]} 15. Bd1 {[%clk 0:02:22]}  Bb7 {[%clk 0:02:27]} 16. O-O {[%clk 0:02:22]}  Rfd8 {[%clk 0:02:22]} 17. Nc2 {[%clk 0:02:19]}  e5 {[%clk 0:02:19]} 18. d5 {[%clk 0:02:18]}  Nxd5 {[%clk 0:02:17]} 19. Nxd5 {[%clk 0:02:18]}  Bxd5 {[%clk 0:02:10]} 20. Ne3 {[%clk 0:02:17]}  Qc5 {[%clk 0:02:07]} 21. Nxd5 {[%clk 0:02:08]}  Rxd5 {[%clk 0:02:08]} 22. Qa5 {[%clk 0:02:05]}  Rd4 {[%clk 0:01:59]} 23. Bc2 {[%clk 0:01:59]}  g6 {[%clk 0:01:56]} 24. Rae1 {[%clk 0:01:56]}  Kg7 {[%clk 0:01:53]} 25. Re2 {[%clk 0:01:56]}  Ra7 {[%clk 0:01:49]} 26. Rfe1 {[%clk 0:01:53]}  f6 {[%clk 0:01:45]} 27. g3 {[%clk 0:01:52]}  h5 {[%clk 0:01:42]} 28. Qc3 {[%clk 0:01:48]}  Rad7 {[%clk 0:01:37]} 29. Qe3 {[%clk 0:01:41]}  a5 {[%clk 0:01:34]} 30. Bb1 {[%clk 0:01:39]}  b4 {[%clk 0:01:32]} 31. axb4 {[%clk 0:01:40]}  axb4 {[%clk 0:01:28]} 32. Qc1 {[%clk 0:01:37]}  h4 {[%clk 0:01:25]} 33. Qc2 {[%clk 0:01:35]}  Rd3 {[%clk 0:01:20]} 34. Re3 {[%clk 0:01:25]}  h3 {[%clk 0:01:16]} 35. Rxd3 {[%clk 0:01:22]}  Rxd3 {[%clk 0:01:16]} 36. Qe2 {[%clk 0:01:15]}  Qd5 {[%clk 0:01:10]} 37. Qf1 {[%clk 0:01:10]}  Rd2 {[%clk 0:01:05]} 38. Qxh3 {[%clk 0:01:08]}  c3 {[%clk 0:01:02]} 39. bxc3 {[%clk 0:01:04]}  bxc3 {[%clk 0:01:01]} 40. Qc8 {[%clk 0:00:49]}  Qd4 {[%clk 0:00:58]} 41. Qb7+ {[%clk 0:00:42]}  Kh6 {[%clk 0:00:54]} 42. Qf3 {[%clk 0:00:40]}  f5 {[%clk 0:00:49]} 43. Rc1 {[%clk 0:00:36]}  Kg7 {[%clk 0:00:45]} 44. Kg2 {[%clk 0:00:29]}  Rb2 {[%clk 0:00:43]} 45. Bxf5 {[%clk 0:00:24]}  gxf5 {[%clk 0:00:38]} 46. Rxc3 {[%clk 0:00:24]}  Rxf2+ {[%clk 0:00:35]} 47. Qxf2 {[%clk 0:00:25]}  Qxc3 {[%clk 0:00:36]} 48. Qxf5 {[%clk 0:00:26]}  Qd2+ {[%clk 0:00:35]} 49. Qf2 {[%clk 0:00:25]}  Qd5+ {[%clk 0:00:34]} 50. Kh3 {[%clk 0:00:22]}  e4 {[%clk 0:00:32]} 51. Qa7+ {[%clk 0:00:18]}  Kg6 {[%clk 0:00:32]} 52. Qb6+ {[%clk 0:00:19]}  Kg7 {[%clk 0:00:32]} 53. Qc7+ {[%clk 0:00:19]}  Kg6 {[%clk 0:00:32]} 54. Qf4 {[%clk 0:00:15]}  Qh5+ {[%clk 0:00:31]} 55. Kg2 {[%clk 0:00:14]}  Qe2+ {[%clk 0:00:31]} 56. Qf2 {[%clk 0:00:14]}  Qd3 {[%clk 0:00:31]} 57. Qb6+ {[%clk 0:00:13]}  Kg7 {[%clk 0:00:30]} 58. Qc7+ {[%clk 0:00:14]}  Kg8 {[%clk 0:00:30]} 59. Qc8+ {[%clk 0:00:14]}  Kg7 {[%clk 0:00:31]} 60. Qg4+ {[%clk 0:00:14]}  Kf8 {[%clk 0:00:30]} 61. Qf4+ {[%clk 0:00:14]}  Kg8 {[%clk 0:00:30]} 62. g4 {[%clk 0:00:15]}  Qe2+ {[%clk 0:00:29]} 63. Kg3 {[%clk 0:00:15]}  Qe1+ {[%clk 0:00:30]} 64. Qf2 {[%clk 0:00:15]}  Qc3+ {[%clk 0:00:30]} 65. Kf4 {[%clk 0:00:15]}  Qf6+ {[%clk 0:00:29]} 66. Ke3 {[%clk 0:00:16]}  Qb6+ {[%clk 0:00:29]} 67. Ke2 {[%clk 0:00:15]}  Qb2+ {[%clk 0:00:29]} 68. Kf1 {[%clk 0:00:16]}  Qc1+ {[%clk 0:00:28]} 69. Kg2 {[%clk 0:00:16]}  e3 {[%clk 0:00:28]} 70. Qe2 {[%clk 0:00:17]}  Qc6+ {[%clk 0:00:26]} 71. Kg3 {[%clk 0:00:17]}  Qe4 {[%clk 0:00:23]} 72. h4 {[%clk 0:00:16]}  Kh7 {[%clk 0:00:22]} 73. h5 {[%clk 0:00:15]}  Kh6 {[%clk 0:00:21]} 74. Qa6+ {[%clk 0:00:15]}  Kg7 {[%clk 0:00:19]} 75. Qe2 {[%clk 0:00:12]}  Kh6 {[%clk 0:00:19]} 76. Qf3 {[%clk 0:00:12]}  Qe5+ {[%clk 0:00:19]} 77. Kh4 {[%clk 0:00:10]}  e2 {[%clk 0:00:18]} 78. g5+ {[%clk 0:00:10]}  Qxg5+ {[%clk 0:00:17]} 79. Kh3 {[%clk 0:00:11]}  e1=Q {[%clk 0:00:17]} 0-1


[Site "https://www.chess.com"]

[Event "Titled Tuesday Blitz December 14 2021"]
[White "Khegay, Dmitriy"]
[Black "Gheorghiu, Calin"]
[WhiteFideId "24153729"]
[BlackFideId "1200305"]
[WhiteElo "2457"]
[BlackElo "2213"]
[Result "1-0"]
[Round "01"]
[TimeControl "180+1"]
[Date "2021.12.15"]
[WhiteClock "0:00:04"]
[BlackClock "0:00:08"]

1. b3 {[%clk 0:02:59]}  d5 {[%clk 0:02:56]} 2. Bb2 {[%clk 0:02:58]}  Nf6 {[%clk 0:02:53]} 3. e3 {[%clk 0:02:57]}  Bf5 {[%clk 0:02:52]} 4. Nf3 {[%clk 0:02:57]}  h6 {[%clk 0:02:50]} 5. g3 {[%clk 0:02:56]}  e6 {[%clk 0:02:50]} 6. Bg2 {[%clk 0:02:57]}  Be7 {[%clk 0:02:49]} 7. O-O {[%clk 0:02:57]}  O-O {[%clk 0:02:49]} 8. d3 {[%clk 0:02:58]}  c5 {[%clk 0:02:49]} 9. Nbd2 {[%clk 0:02:58]}  Nc6 {[%clk 0:02:49]} 10. Ne5 {[%clk 0:02:58]}  Nxe5 {[%clk 0:02:47]} 11. Bxe5 {[%clk 0:02:59]}  Nd7 {[%clk 0:02:47]} 12. Bb2 {[%clk 0:02:59]}  Bf6 {[%clk 0:02:48]} 13. Qc1 {[%clk 0:02:59]}  Rc8 {[%clk 0:02:44]} 14. e4 {[%clk 0:02:55]}  dxe4 {[%clk 0:02:41]} 15. Nxe4 {[%clk 0:02:56]}  Bxb2 {[%clk 0:02:33]} 16. Qxb2 {[%clk 0:02:57]}  Nb6 {[%clk 0:02:32]} 17. Nd2 {[%clk 0:02:46]}  Rc7 {[%clk 0:02:28]} 18. Rfe1 {[%clk 0:02:41]}  Qd4 {[%clk 0:02:26]} 19. Qc1 {[%clk 0:02:29]}  Rd8 {[%clk 0:02:25]} 20. a4 {[%clk 0:02:25]}  Nd5 {[%clk 0:02:22]} 21. a5 {[%clk 0:02:22]}  Nc3 {[%clk 0:02:19]} 22. Nf3 {[%clk 0:02:15]}  Qd6 {[%clk 0:02:05]} 23. Ne5 {[%clk 0:02:11]}  f6 {[%clk 0:01:48]} 24. Nc4 {[%clk 0:02:07]}  Qd4 {[%clk 0:01:46]} 25. Qe3 {[%clk 0:02:05]}  e5 {[%clk 0:01:41]} 26. Qxd4 {[%clk 0:01:48]}  cxd4 {[%clk 0:01:34]} 27. f4 {[%clk 0:01:48]}  exf4 {[%clk 0:01:34]} 28. gxf4 {[%clk 0:01:49]}  Nd5 {[%clk 0:01:32]} 29. Bxd5+ {[%clk 0:01:47]}  Rxd5 {[%clk 0:01:31]} 30. Re8+ {[%clk 0:01:47]}  Kh7 {[%clk 0:01:30]} 31. Ra8 {[%clk 0:01:46]}  a6 {[%clk 0:01:23]} 32. Re1 {[%clk 0:01:46]}  Bg6 {[%clk 0:01:20]} 33. Kf2 {[%clk 0:01:42]}  Rh5 {[%clk 0:01:14]} 34. Kg3 {[%clk 0:01:42]}  Bf7 {[%clk 0:01:14]} 35. Re4 {[%clk 0:01:39]}  Bxc4 {[%clk 0:01:11]} 36. bxc4 {[%clk 0:01:30]}  Rd7 {[%clk 0:01:08]} 37. Ree8 {[%clk 0:00:56]}  Rxa5 {[%clk 0:01:07]} 38. Kf3 {[%clk 0:00:55]}  Kg6 {[%clk 0:01:06]} 39. Red8 {[%clk 0:00:40]}  Rxd8 {[%clk 0:01:00]} 40. Rxd8 {[%clk 0:00:41]}  Ra2 {[%clk 0:01:00]} 41. Rxd4 {[%clk 0:00:41]}  Rxc2 {[%clk 0:01:00]} 42. Rd7 {[%clk 0:00:42]}  Rb2 {[%clk 0:00:59]} 43. Ke4 {[%clk 0:00:39]}  a5 {[%clk 0:00:59]} 44. f5+ {[%clk 0:00:39]}  Kh7 {[%clk 0:00:50]} 45. d4 {[%clk 0:00:38]}  a4 {[%clk 0:00:50]} 46. Rd8 {[%clk 0:00:38]}  a3 {[%clk 0:00:48]} 47. Ra8 {[%clk 0:00:39]}  a2 {[%clk 0:00:49]} 48. d5 {[%clk 0:00:27]}  Rxh2 {[%clk 0:00:48]} 49. c5 {[%clk 0:00:25]}  h5 {[%clk 0:00:45]} 50. Kd3 {[%clk 0:00:16]}  h4 {[%clk 0:00:39]} 51. d6 {[%clk 0:00:16]}  h3 {[%clk 0:00:30]} 52. d7 {[%clk 0:00:16]}  Rh1 {[%clk 0:00:30]} 53. Kc2 {[%clk 0:00:03]}  Rd1 {[%clk 0:00:30]} 54. Kxd1 {[%clk 0:00:02]}  h2 {[%clk 0:00:30]} 55. d8=Q {[%clk 0:00:02]}  h1=Q+ {[%clk 0:00:31]} 56. Kc2 {[%clk 0:00:03]}  Qb1+ {[%clk 0:00:29]} 57. Kc3 {[%clk 0:00:03]}  a1=Q+ {[%clk 0:00:29]} 58. Rxa1 {[%clk 0:00:03]}  Qxa1+ {[%clk 0:00:29]} 59. Kc4 {[%clk 0:00:04]}  Qa6+ {[%clk 0:00:27]} 60. Kc3 {[%clk 0:00:04]}  Qa3+ {[%clk 0:00:27]} 61. Kc4 {[%clk 0:00:04]}  Qa2+ {[%clk 0:00:27]} 62. Kb4 {[%clk 0:00:03]}  Qb2+ {[%clk 0:00:26]} 63. Kc4 {[%clk 0:00:04]}  Qc2+ {[%clk 0:00:26]} 64. Kb4 {[%clk 0:00:04]}  Qxf5 {[%clk 0:00:25]} 65. Qc7 {[%clk 0:00:04]}  Qe4+ {[%clk 0:00:22]} 66. Kb5 {[%clk 0:00:04]}  f5 {[%clk 0:00:21]} 67. Qf7 {[%clk 0:00:03]}  Qc6+ {[%clk 0:00:19]} 68. Kb4 {[%clk 0:00:03]}  Qe4+ {[%clk 0:00:12]} 69. Kb5 {[%clk 0:00:04]}  Qd3+ {[%clk 0:00:11]} 70. Kb6 {[%clk 0:00:04]}  Qb1+ {[%clk 0:00:11]} 71. Kc7 {[%clk 0:00:04]}  Qe4 {[%clk 0:00:09]} 72. Qh5+ {[%clk 0:00:04]}  Kg8 {[%clk 0:00:09]} 73. Kd6 {[%clk 0:00:03]}  f4 {[%clk 0:00:09]} 74. Qg4 {[%clk 0:00:02]}  f3 {[%clk 0:00:09]} 75. Qxe4 {[%clk 0:00:02]}  f2 {[%clk 0:00:08]} 76. Qd5+ {[%clk 0:00:03]}  Kh8 {[%clk 0:00:08]} 77. Qf3 {[%clk 0:00:04]} 1-0


[Site "https://www.chess.com"]